bitfinex/quotes_ETHUSD_20241119
["timestamp","ask_amount","ask_price","bid_price","bid_amount"]
[1732010616487,8.76,3115.1,3114.9,3.21037]
[1732010616687,8.76,3115.1,3115.0,3.21027]
[1732010617191,8.76,3115.1,3114.8,3.21046]
[1732010617684,8.76,3115.1,3114.7,3.21052]
[1732010617873,8.76,3115.1,3114.5,3.21072]
[1732010617874,3.21029,3115.0,3114.5,3.21072]
[1732010618069,3.21054,3114.8,3114.3,3.21093]
[1732010618284,0.7973,3114.9,3114.5,3.21078]
[1732010619248,0.7973,3114.9,3114.5,3.21072]
[1732010619443,0.7973,3114.9,3114.6,3.21068]
[1732010619674,8.76,3115.1,3114.7,3.21051]
[1732010620444,0.23807448,3115.0,3114.7,3.21051]
[1732010620938,4.02673,3115.4,3114.9,3.21037]
[1732010621163,0.23808235,3115.3,3114.9,3.21037]
[1732010621387,0.23808235,3115.2,3114.8,3.21046]
[1732010621664,4.750371,3115.4,3114.8,3.21046]
[1732010621665,0.23808235,3115.1,3114.8,3.21046]
[1732010621871,4.02673,3115.4,3114.9,6.42066]
[1732010622176,3.2097,3115.6,3114.9,6.42066]
[1732010622177,0.23810256,3115.3,3115.1,3.21016]
[1732010622387,0.23810256,3115.5,3115.4,3.20986]
[1732010622719,3.20804,3117.2,3115.7,6.419]
[1732010622720,0.7737,3116.0,3115.7,6.419]
[1732010622923,0.23812882,3115.9,3115.7,3.20948]
[1732010623127,0.777,3116.4,3115.8,3.20944]
[1732010623287,0.23812565,3116.3,3115.9,3.20927]
[1732010623614,0.23812565,3116.2,3115.8,3.20944]
[1732010623778,3.20895,3116.3,3115.8,3.20944]
[1732010623982,0.2380151,3116.2,3115.7,0.2458]
[1732010624285,3.67138371,3116.2,3115.4,3.20984]
[1732010624492,3.20932,3116.0,3115.4,3.20984]
[1732010624718,3.2093,3116.0,3115.4,3.20984]
[1732010625635,3.2093,3116.0,3115.2,3.45581]
[1732010625840,3.20951,3115.8,3115.2,3.45581]
[1732010626026,3.20928,3116.0,3115.2,3.45581]
[1732010626202,3.20928,3116.0,3115.5,3.20972]
[1732010626593,3.20935,3115.9,3115.3,3.2099]
[1732010626935,0.55,3116.2,3115.3,3.20996]
[1732010626936,3.20908,3116.2,3115.3,3.20996]
[1732010627139,0.23806247,3116.1,3115.5,3.0]
[1732010627370,0.777,3116.3,3115.4,3.80067875]
[1732010627371,0.777,3116.3,3115.8,3.20938]
[1732010627524,0.23812644,3116.2,3115.4,3.80067875]
[1732010627724,3.2092,3116.1,3115.5,6.20966]
[1732010628137,3.2092,3116.1,3115.6,3.20962]
[1732010628353,0.777,3116.3,3115.5,3.0]
[1732010628554,3.2092,3116.1,3115.5,6.20975]
[1732010628842,3.20924,3116.0,3115.5,6.20975]
[1732010629046,3.20912,3116.2,3115.6,3.20957]
[1732010629269,3.20912,3116.2,3115.5,3.0]
[1732010629565,3.928631,3116.2,3115.7,3.20952]
[1732010629778,0.23822076,3116.1,3115.7,3.20952]
[1732010630239,0.23822076,3116.1,3115.7,3.20948]
[1732010630440,0.719511,3116.2,3115.8,3.20943]
[1732010630674,0.719511,3116.2,3115.7,3.20948]
[1732010631036,0.719511,3116.2,3115.7,6.41896]
[1732010631231,3.928571,3116.2,3115.7,3.20948]
[1732010631580,0.7904,3115.8,3115.3,3.20991]
[1732010631731,3.99992,3115.8,3115.3,3.20991]
[1732010632505,0.7904,3115.8,3115.3,3.20991]
[1732010632660,0.7904,3115.8,3115.4,3.20984]
[1732010633008,0.7904,3115.8,3115.3,3.20994]
[1732010633309,3.9999,3115.8,3115.3,3.20994]
[1732010634991,1.19039,3115.8,3115.0,3.21022]
[1732010635176,3.20973,3115.6,3115.0,3.21022]
[1732010635384,3.20973,3115.6,3115.1,3.21011]
[1732010635594,3.20973,3115.6,3115.0,3.21022]
[1732010635919,6.41948,3115.6,3115.0,3.21022]
[1732010636112,3.930718,3115.6,3114.9,0.2458]
[1732010636418,3.20992,3115.4,3114.9,3.21032]
[1732010637077,0.23871114,3115.3,3114.9,3.21032]
[1732010637434,0.794,3115.5,3115.0,3.2102]
[1732010637588,0.23876913,3115.4,3115.0,3.2102]
[1732010638087,3.20986,3115.4,3115.0,3.2102]
[1732010638674,3.21012,3115.2,3114.6,3.21062]
[1732010638926,3.21023,3115.1,3114.6,3.21062]
[1732010639128,0.8053,3114.9,3114.4,3.21082]
[1732010639274,4.01572,3114.9,3114.4,3.21082]
[1732010639474,4.01572,3114.9,3114.3,3.21097]
[1732010639475,0.8053,3114.9,3114.3,3.21097]
[1732010639674,4.01576,3114.9,3114.4,3.21087]
[1732010640280,4.01576,3114.9,3114.3,3.86615672]
[1732010640281,0.8053,3114.9,3114.3,3.86615672]
[1732010640512,0.8053,3114.9,3114.4,3.21081]
[1732010640843,4.01568,3114.9,3114.4,3.21081]
[1732010641334,0.8177,3115.7,3115.1,3.21008]
[1732010641477,4.0273,3115.7,3115.2,3.20999]
[1732010641683,4.0273,3115.7,3114.8,2.89211096]
[1732010641684,0.23901979,3115.6,3115.0,3.21022]
[1732010641883,0.23901979,3115.5,3115.1,3.21014]
[1732010642132,0.23901979,3115.5,3115.0,3.21022]
[1732010642133,6.41939,3115.6,3115.0,3.21022]
[1732010642352,3.20997,3115.3,3114.7,3.21051]
[1732010642487,0.23907933,3115.5,3114.7,3.21051]
[1732010642488,4.28213933,3115.2,3114.7,3.21051]
[1732010642823,0.62703615,3115.6,3114.5,3.13791096]
[1732010642824,0.7843,3115.6,3115.2,3.21003]
[1732010642978,0.23920758,3115.5,3115.2,3.21003]
[1732010643178,0.23920758,3115.4,3115.0,3.21019]
[1732010643378,0.23920758,3115.4,3114.8,6.10252096]
[1732010643379,0.23920758,3115.3,3114.8,2.89211096]
[1732010643584,0.7843,3115.6,3115.1,3.2101]
[1732010643585,0.23920758,3115.5,3115.1,3.2101]
[1732010643883,0.7843,3115.6,3114.6,3.21065]
[1732010643884,0.23924356,3115.4,3114.6,3.21068]
[1732010644086,3.99396,3115.6,3115.0,3.21017]
[1732010644281,3.20991,3115.4,3114.9,3.21036]
[1732010644531,0.23931434,3115.3,3115.1,3.21016]
[1732010644831,4.393446,3115.6,3115.1,3.21016]
[1732010644832,0.7843,3115.6,3115.2,3.21006]
[1732010645031,0.23933101,3115.5,3115.2,3.21006]
[1732010645185,0.23933101,3115.4,3115.2,3.21006]
[1732010645385,0.7843,3115.6,3115.2,6.42007]
[1732010645684,0.23935955,3115.5,3115.2,3.21001]
[1732010645884,3.20939,3115.9,3115.2,3.21001]
[1732010645885,0.23935955,3115.4,3115.2,3.21006]
[1732010646084,3.20957,3115.7,3115.2,3.21006]
[1732010646281,0.23940858,3115.6,3115.2,3.21006]
[1732010646486,0.23940858,3115.5,3115.2,3.21006]
[1732010646734,0.23940858,3115.4,3115.2,3.21006]
[1732010647028,3.20957,3115.7,3115.2,3.21006]
[1732010647187,0.23937318,3115.6,3115.0,3.21021]
[1732010647391,0.23937318,3115.5,3115.1,3.21014]
[1732010647590,0.23937318,3115.4,3115.1,3.21014]
[1732010647829,4.01257,3115.8,3114.8,0.2458]
[1732010648036,0.23933996,3115.7,3114.9,3.21037]
[1732010648334,0.8031,3116.2,3115.3,0.2458]
[1732010648536,0.23930296,3116.1,3115.5,3.2097]
[1732010648840,3.44854296,3116.0,3115.5,3.2097]
[1732010649011,0.23930296,3115.9,3115.5,3.2097]
[1732010649338,0.23930296,3115.8,3115.6,3.20957]
[1732010649538,0.8031,3116.2,3115.6,3.20957]
[1732010649539,4.01215,3116.2,3115.7,3.20955]
[1732010649896,0.23943747,3116.1,3115.7,3.20955]
[1732010650092,0.23943747,3116.0,3115.7,3.20955]
[1732010650297,0.23943747,3115.9,3115.7,3.20955]
[1732010650524,0.23943747,3115.8,3115.7,3.20955]
[1732010650833,0.23943747,3115.8,3115.5,6.41937]
[1732010650998,3.20915,3116.1,3115.5,3.20967]
[1732010651334,0.23959785,3116.0,3115.6,3.20963]
[1732010651536,0.23959785,3115.9,3115.6,3.20963]
[1732010651705,0.23959785,3115.8,3115.6,3.20963]
[1732010651887,0.23959785,3115.7,3115.6,3.20963]
[1732010652091,0.23959785,3115.7,3115.4,3.20978]
[1732010652292,3.20938,3115.9,3115.3,3.4557]
[1732010652519,0.8094,3115.6,3115.1,3.21009]
[1732010652723,0.23964759,3115.5,3115.3,3.2099]
[1732010652924,0.23964759,3115.4,3115.3,3.2099]
[1732010653368,0.23963965,3115.4,3115.3,3.2099]
[1732010653532,0.8094,3115.6,3115.3,3.2099]
[1732010653870,0.23965894,3115.5,3115.3,3.20989]
[1732010654080,0.8094,3115.6,3115.3,3.20989]
[1732010654376,0.8094,3115.6,3114.8,3.0]
[1732010654672,0.23965598,3115.5,3115.3,3.20989]
[1732010654825,0.8094,3115.6,3115.3,3.20989]
[1732010655040,0.23965297,3115.5,3115.4,3.20986]
[1732010655691,0.23965297,3115.5,3115.2,3.21]
[1732010655873,4.3609,3115.9,3114.9,3.21037]
[1732010655874,1.03495297,3115.4,3114.9,3.21037]
[1732010656075,1.03495297,3115.4,3114.8,3.21041]
[1732010656076,3.44964297,3115.3,3114.8,3.21041]
[1732010656247,0.23965297,3115.2,3114.8,3.21041]
[1732010656440,3.20999,3115.3,3114.8,3.21041]
[1732010656661,0.23967369,3115.2,3114.8,3.21041]
[1732010656943,4.00519,3115.4,3114.9,3.21036]
[1732010657173,4.00519,3115.4,3114.6,0.2458]
[1732010657174,0.23965519,3115.3,3115.1,3.21011]
[1732010657386,0.7953,3115.4,3115.2,3.21006]
[1732010657545,0.23968671,3115.3,3115.2,3.21006]
[1732010657741,0.23968671,3115.3,3115.0,3.21021]
[1732010657742,0.23967943,3115.3,3115.0,3.21021]
[1732010657989,0.7953,3115.4,3115.1,3.21016]
[1732010657990,0.23968178,3115.2,3115.1,3.21016]
[1732010658146,0.7953,3115.4,3115.1,3.21016]
[1732010658352,0.23972278,3115.3,3115.1,3.21016]
[1732010658648,0.7953,3115.4,3115.2,3.21003]
[1732010658876,0.23971107,3115.3,3115.2,3.21003]
[1732010659080,0.8211,3115.7,3115.4,3.2098]
[1732010659246,0.23972457,3115.6,3115.4,3.2098]
[1732010659449,0.23972457,3115.5,3115.4,3.2098]
[1732010660665,0.23976964,3115.5,3115.3,3.20996]
[1732010660846,3.20954,3115.8,3115.3,3.20996]
[1732010661189,0.23966958,3115.7,3115.4,3.20983]
[1732010661393,0.23966958,3115.6,3115.5,3.20974]
[1732010663543,0.23966958,3115.6,3114.5,3.63308082]
[1732010663703,1.02836958,3115.5,3115.0,3.2102]
[1732010663908,0.23966958,3115.4,3115.0,3.2102]
[1732010664121,0.23966958,3115.4,3115.1,3.21014]
[1732010664317,0.23966958,3115.3,3115.1,3.21014]
[1732010664534,0.7887,3115.5,3114.7,0.2458]
[1732010665030,0.23968918,3115.4,3114.7,0.2458]
[1732010665201,0.7887,3115.5,3114.7,0.2458]
[1732010665202,0.23968918,3115.3,3114.7,0.2458]
[1732010665403,0.7887,3115.5,3114.7,0.2458]
[1732010665618,0.23971853,3115.4,3114.7,0.2458]
[1732010665805,0.7887,3115.5,3114.7,0.2458]
[1732010666146,0.23972515,3115.4,3114.7,0.2458]
[1732010666441,0.7887,3115.5,3114.7,0.2458]
[1732010666598,0.23975555,3115.4,3114.8,3.21039]
[1732010666793,0.7887,3115.5,3114.7,0.2458]
[1732010666991,3.44968853,3115.4,3114.7,0.2458]
[1732010667300,0.23974853,3115.3,3114.6,3.0]
[1732010667637,3.99852,3115.5,3114.6,3.0]
[1732010667638,0.7887,3115.5,3114.6,6.21062]
[1732010668005,0.23981468,3115.4,3114.6,3.0]
[1732010668236,0.23981468,3115.3,3114.7,3.21055]
[1732010668452,0.7887,3115.5,3114.8,3.21039]
[1732010668741,0.23986055,3115.4,3114.7,3.21055]
[1732010669139,3.99851,3115.5,3114.6,6.21068]
[1732010669302,0.23986197,3115.4,3114.6,6.21068]
[1732010669498,0.23986197,3115.3,3114.6,6.21068]
[1732010669705,3.99851,3115.5,3114.6,6.21068]
[1732010669904,0.23994055,3115.4,3114.6,6.21068]
[1732010670116,0.23994055,3115.3,3114.6,6.21068]
[1732010670340,0.7887,3115.5,3114.6,6.21068]
[1732010670644,0.01,3116.8,3114.9,3.2103]
[1732010670645,0.23995492,3115.4,3114.9,3.2103]
[1732010670843,0.8079,3115.8,3115.0,0.2458]
[1732010671011,3.44956583,3115.7,3115.0,0.2458]
[1732010671215,0.23996583,3115.6,3115.0,0.2458]
[1732010671415,0.23995991,3115.5,3115.0,0.2458]
[1732010671627,0.23995991,3115.4,3115.0,0.2458]
[1732010671798,3.20965,3115.6,3114.7,0.2458]
[1732010671996,0.8079,3115.4,3114.7,0.2458]
[1732010672249,0.24003676,3115.3,3114.7,0.2458]
[1732010672400,0.24005555,3115.2,3114.5,3.2458]
[1732010672606,0.24005555,3115.1,3114.5,3.2458]
[1732010672807,4.01783,3115.4,3114.5,3.2458]
[1732010672808,3.21013,3115.2,3114.5,3.2458]
[1732010673008,0.24005431,3115.1,3114.5,3.2458]
[1732010673208,3.21013,3115.2,3114.5,3.2458]
[1732010673434,0.24007043,3115.1,3114.5,3.2458]
[1732010673641,0.24007043,3115.0,3114.5,3.2458]
[1732010673846,3.21013,3115.2,3114.5,3.2458]
[1732010674052,0.2400908,3115.1,3114.5,3.2458]
[1732010674216,3.21013,3115.2,3114.5,3.2458]
[1732010674416,0.24007796,3115.1,3114.5,3.2458]
[1732010674612,3.21022,3115.1,3114.5,3.2458]
[1732010675118,3.21013,3115.2,3114.5,0.2458]
[1732010675371,3.21028,3115.0,3114.5,0.2458]
[1732010675584,3.21028,3115.0,3114.4,0.62811593]
[1732010675868,3.98638,3114.9,3114.4,0.62811593]
[1732010676168,3.98638,3114.9,3114.0,3.21125]
[1732010676169,3.45053341,3114.8,3114.1,0.2458]
[1732010676318,3.21058,3114.7,3114.1,0.2458]
[1732010676514,6.42123,3114.7,3113.9,3.13791096]
[1732010676829,3.21069,3114.6,3113.9,0.2458]
[1732010677029,3.21058,3114.7,3113.9,0.2458]
[1732010677227,3.21079,3114.5,3113.9,0.2458]
[1732010677432,3.21079,3114.5,3113.9,3.2458]
[1732010677639,3.21058,3114.7,3113.9,3.2458]
[1732010677836,0.776,3114.9,3114.3,0.64490233]
[1732010678063,0.01,3116.2,3114.4,0.2458]
[1732010678064,3.21019,3115.1,3114.4,0.2458]
[1732010678264,0.23989295,3115.0,3114.4,0.2458]
[1732010678474,0.23989295,3114.9,3114.4,0.2458]
[1732010678666,0.23989295,3114.8,3114.4,0.2458]
[1732010678962,3.21038,3114.9,3114.4,0.2458]
[1732010679268,0.7944,3114.7,3114.3,0.64490233]
[1732010679629,4.00503,3114.7,3114.3,0.64490233]
[1732010680051,0.23982454,3114.6,3114.3,0.64490233]
[1732010680221,4.00503,3114.7,3114.3,0.64490233]
[1732010680427,0.23978885,3114.6,3114.3,0.64490233]
[1732010680726,0.23978885,3114.6,3113.9,0.2458]
[1732010680727,3.21079,3114.5,3113.9,0.2458]
[1732010681155,4.00503,3114.7,3114.0,3.0]
[1732010681374,0.23977391,3114.6,3114.0,3.0]
[1732010681573,0.23977391,3114.5,3114.0,3.0]
[1732010681840,3.21069,3114.6,3114.0,3.0]
[1732010682042,0.23978442,3114.5,3114.0,3.0]
[1732010682265,3.21069,3114.6,3114.0,3.0]
[1732010682652,0.23984376,3114.5,3114.0,3.0]
[1732010682855,3.21087,3114.5,3113.9,0.2458]
[1732010684079,3.21105,3114.3,3113.7,0.6439243]
[1732010684481,0.7685,3114.2,3113.7,0.6439243]
[1732010684653,0.7685,3114.2,3113.6,0.2458]
[1732010684654,0.7685,3114.2,3113.6,3.2458]
[1732010685112,0.7685,3114.2,3113.6,0.2458]
[1732010685288,3.21121,3114.1,3113.6,0.2458]
[1732010686080,3.21121,3114.1,3113.6,0.6542014]
[1732010686290,3.45069843,3114.0,3113.6,0.6542014]
[1732010686583,3.2113,3114.0,3113.6,0.6542014]
[1732010686894,3.21146,3113.9,3113.6,0.6542014]
[1732010687098,3.21157,3113.8,3113.1,0.2458]
[1732010687385,3.21157,3113.8,3112.7,0.01]
[1732010687386,3.21183,3113.5,3112.8,0.2458]
[1732010687802,6.42373,3113.5,3112.8,0.2458]
[1732010688083,4.01526,3113.2,3112.7,0.65253137]
[1732010689244,0.8031,3113.2,3112.7,0.65253137]
[1732010689443,0.8031,3113.2,3112.8,3.21245]
[1732010689692,0.8236,3113.5,3112.8,3.21245]
[1732010689876,4.0355,3113.5,3112.7,3.54464233]
[1732010690248,4.0355,3113.5,3112.7,2.89211096]
[1732010690249,3.21206,3113.3,3112.7,2.89211096]
[1732010690493,3.21206,3113.3,3112.6,0.2458]
[1732010691191,3.21213,3113.2,3112.6,0.2458]
[1732010691391,3.21206,3113.3,3112.6,0.2458]
[1732010692899,3.21206,3113.3,3112.6,3.45853]
[1732010693210,7.24736,3113.5,3112.6,3.45848]
[1732010693534,3.21195,3113.4,3112.7,3.21255]
[1732010693710,3.21199,3113.4,3112.6,4.11409761]
[1732010694903,3.21166,3113.7,3112.9,3.21242]
[1732010695235,3.21166,3113.7,3113.0,3.2123]
[1732010695236,3.21161,3113.7,3113.0,3.2123]
[1732010695437,3.21161,3113.7,3112.9,3.21242]
[1732010695600,3.21183,3113.5,3112.8,0.2458]
[1732010695944,0.7878,3113.4,3112.8,0.2458]
[1732010696536,3.99978,3113.4,3112.8,0.2458]
[1732010699533,3.21202,3113.3,3112.6,0.90137761]
[1732010700033,3.21217,3113.2,3112.6,0.90137761]
[1732010700245,3.21264,3112.7,3112.6,0.65557761]
[1732010700413,3.21264,3112.7,3112.0,3.45911]
[1732010700414,4.02204,3112.7,3112.0,3.45911]
[1732010700614,3.2128,3112.6,3112.0,0.2458]
[1732010700952,0.8094,3112.7,3112.0,0.2458]
[1732010701243,4.02208,3112.7,3112.0,3.45907]
[1732010701770,0.8094,3112.7,3112.0,3.45907]
[1732010701907,4.02205,3112.7,3112.0,0.2458]
[1732010702461,4.02205,3112.7,3112.0,3.45907]
[1732010702462,0.8094,3112.7,3112.0,3.45907]
[1732010702603,3.21229,3113.1,3112.2,3.21306]
[1732010702802,3.21206,3113.3,3112.5,3.21275]
[1732010702803,0.768,3113.0,3112.5,3.21275]
[1732010703036,0.768,3113.2,3112.6,3.21266]
[1732010703254,0.768,3113.2,3112.3,3.13791096]
[1732010703547,0.7692,3113.5,3112.9,3.21241]
[1732010704118,3.98102,3113.5,3112.8,0.2458]
[1732010704318,4.379105,3113.5,3112.8,3.45826]
[1732010704570,3.2121,3113.3,3112.6,3.45849]
[1732010704924,3.21213,3113.2,3112.6,0.2458]
[1732010705121,0.7816,3113.1,3112.4,3.45874]
[1732010705321,6.42477,3113.0,3112.3,3.21304]
[1732010705537,3.21236,3113.0,3112.3,3.21304]
[1732010705763,3.21249,3112.9,3112.2,3.45895]
[1732010705969,3.611756,3113.0,3112.0,0.2458]
[1732010705970,3.21276,3112.6,3112.0,0.2458]
[1732010706122,3.21276,3112.6,3111.7,3.13791096]
[1732010706326,3.21276,3112.6,3111.9,3.21345]
[1732010706526,3.21276,3112.6,3112.0,3.21334]
[1732010706728,0.8138,3112.7,3112.1,3.21318]
[1732010707136,3.97089,3113.0,3112.2,0.2458]
[1732010707434,3.21255,3112.8,3112.2,3.45895]
[1732010708441,3.21255,3112.8,3112.0,3.21333]
[1732010708646,3.21255,3112.8,3111.7,2.89211096]
[1732010708647,3.21301,3112.4,3111.7,3.45942]
[1732010708948,3.21307,3112.3,3111.4,3.45972]
[1732010709158,3.21328,3112.1,3111.4,3.45972]
[1732010709891,3.99747,3111.9,3111.1,0.2458]
[1732010710047,3.99747,3111.9,3111.1,0.88499135]
[1732010710247,3.21368,3111.7,3111.1,3.46007]
[1732010710549,6.42745,3111.7,3111.0,3.21433]
[1732010710770,6.42745,3111.7,3111.1,3.21428]
[1732010710771,3.21368,3111.7,3111.1,3.21428]
[1732010710970,3.21369,3111.7,3111.1,3.21428]
[1732010711196,3.21369,3111.7,3110.9,3.2145]
[1732010711197,3.21378,3111.6,3111.0,3.21437]
[1732010711391,3.21381,3111.6,3110.8,0.2458]
[1732010711614,3.21394,3111.5,3110.9,3.21442]
[1732010711905,0.642747,3111.6,3110.8,0.2458]
[1732010711906,0.642747,3111.6,3111.1,3.21423]
[1732010712057,3.21376,3111.7,3111.1,3.21423]
[1732010712549,3.99747,3111.9,3111.3,3.21408]
[1732010712550,3.99752,3111.9,3111.3,3.21408]
[1732010712752,0.784,3111.9,3111.4,0.05577842]
[1732010712966,0.784,3111.9,3111.4,3.26970842]
[1732010713476,0.784,3111.9,3111.4,0.05577842]
[1732010713695,0.7898,3112.2,3111.8,3.21355]
[1732010714603,4.00296,3112.2,3111.7,3.21367]
[1732010714756,0.7898,3112.2,3111.4,3.21398]
[1732010714951,3.21333,3112.1,3111.4,3.21391]
[1732010715160,4.00301,3112.2,3111.6,3.21371]
[1732010715704,0.7898,3112.2,3111.6,3.21371]
[1732010715906,3.21329,3112.1,3111.5,3.21384]
[1732010716193,3.21329,3112.1,3111.4,3.21394]
[1732010716194,0.7898,3112.2,3111.4,3.21398]
[1732010716368,0.7898,3112.2,3111.8,3.2135]
[1732010716572,0.7898,3112.2,3111.8,6.427]
[1732010716911,0.7898,3112.2,3111.9,3.21345]
[1732010717057,0.7898,3112.2,3111.3,0.2458]
[1732010717058,0.7898,3112.2,3112.1,3.21326]
[1732010717259,8.21076,3114.6,3112.3,3.21297]
[1732010717260,0.802,3112.6,3112.3,3.21297]
[1732010717492,0.802,3112.6,3111.8,0.2458]
[1732010717493,0.802,3112.6,3112.2,3.2131]
[1732010717677,3.21317,3112.2,3111.4,3.21393]
[1732010718085,3.21337,3112.0,3111.4,3.21398]
[1732010718284,3.534707,3112.0,3111.4,3.21398]
[1732010718456,3.21363,3111.8,3111.2,6.42826]
[1732010718657,3.21354,3111.9,3111.3,3.21401]
[1732010718908,0.8037,3111.8,3111.3,3.21401]
[1732010719887,0.8037,3111.8,3111.3,3.21402]
[1732010720217,0.8037,3111.8,3111.3,3.21407]
[1732010720387,0.8037,3111.8,3110.8,0.2458]
[1732010720388,3.21386,3111.6,3110.8,0.2458]
[1732010720587,3.21401,3111.4,3110.9,3.21443]
[1732010720789,3.21386,3111.6,3111.0,3.21439]
[1732010721017,0.7836,3111.4,3111.0,3.21439]
[1732010721974,0.7836,3111.4,3111.2,3.21417]
[1732010722171,0.7836,3111.4,3111.2,6.42828]
[1732010722870,0.7836,3111.4,3111.2,3.21411]
[1732010725998,0.7836,3111.4,3111.0,3.21435]
[1732010726378,0.7836,3111.4,3111.0,3.21433]
[1732010727225,0.7836,3111.4,3110.5,0.2458]
[1732010727432,0.8027,3110.8,3109.6,0.58141422]
[1732010727589,3.21481,3110.6,3110.0,3.21536]
[1732010727979,0.23877768,3110.5,3110.0,3.21536]
[1732010728282,3.21481,3110.6,3110.0,3.21536]
[1732010728722,3.21481,3110.6,3110.1,3.21532]
[1732010728888,7.232,3110.8,3110.1,3.21532]
[1732010729089,0.23864879,3110.7,3109.7,3.21574]
[1732010729305,0.23864879,3110.7,3110.2,3.21515]
[1732010730203,7.633731,3110.8,3110.2,3.21515]
[1732010730399,3.68047898,3110.7,3110.2,3.21515]
[1732010731236,3.68047898,3110.7,3110.1,3.21532]
[1732010731540,0.7576,3110.3,3109.5,3.21586]
[1732010731740,0.7576,3110.3,3108.4,5.29]
[1732010731741,0.7576,3109.8,3109.6,3.21578]
[1732010731926,0.7576,3110.2,3109.6,3.21578]
[1732010732084,0.7576,3110.2,3109.6,6.43155]
[1732010732282,0.7576,3110.2,3109.6,6.43153]
[1732010732733,0.7576,3110.2,3109.6,3.21576]
[1732010732912,0.7576,3110.2,3109.7,3.21573]
[1732010735263,1.508561,3110.2,3109.6,3.21583]
[1732010735456,4.723871,3110.2,3109.6,3.21583]
[1732010735758,3.21555,3109.9,3109.4,3.21596]
[1732010736253,3.21555,3109.9,3109.3,3.21613]
[1732010736254,0.7616,3109.8,3109.3,3.21613]
[1732010736453,0.7616,3109.8,3109.2,3.2162]
[1732010736656,0.7616,3109.8,3109.3,3.21608]
[1732010737331,3.97724,3109.8,3109.3,3.21608]
[1732010737528,3.97724,3109.8,3109.0,3.46218]
[1732010737529,3.21588,3109.6,3109.0,3.21638]
[1732010737763,0.7625,3109.5,3109.0,3.21638]
[1732010737930,0.7625,3109.5,3109.1,3.21633]
[1732010738131,0.7625,3109.5,3108.8,3.21663]
[1732010738334,3.21606,3109.4,3108.9,3.21656]
[1732010738884,3.21606,3109.4,3108.7,3.21668]
[1732010739026,3.21606,3109.4,3108.8,3.21661]
[1732010739358,3.21616,3109.3,3108.8,3.21661]
[1732010739816,3.21626,3109.2,3108.6,3.21687]
[1732010740163,4.02208,3109.1,3108.6,3.21687]
[1732010740384,3.21647,3109.0,3108.5,3.84628597]
[1732010740764,0.8057,3109.1,3108.5,3.84622597]
[1732010740974,0.8057,3108.8,3108.3,3.21714]
[1732010741120,0.8057,3108.8,3108.1,3.21734]
[1732010741320,0.8057,3108.8,3108.2,3.21729]
[1732010741321,4.02245,3108.8,3108.2,3.21729]
[1732010742248,0.8057,3108.8,3108.3,3.21718]
[1732010742572,1.529596,3108.8,3108.3,3.21718]
[1732010742763,4.02238,3108.8,3108.3,3.21718]
[1732010742926,0.8057,3108.8,3108.3,3.21718]
[1732010743563,0.8057,3108.8,3108.1,3.21737]
[1732010743774,4.02238,3108.8,3108.3,3.21717]
[1732010743940,4.746265,3108.8,3108.3,3.21717]
[1732010745867,0.8057,3108.8,3107.5,0.2458]
[1732010746067,0.8057,3108.8,3108.7,3.21677]
[1732010746467,0.8162,3109.3,3108.8,3.21666]
[1732010746647,4.353985,3109.3,3108.8,3.21666]
[1732010746827,4.03238,3109.3,3108.8,3.21666]
[1732010747257,0.8162,3109.3,3108.6,3.21684]
[1732010747771,0.8162,3109.3,3108.8,3.21658]
[1732010748074,0.8162,3109.3,3108.4,3.21708]
[1732010748224,0.8162,3109.3,3109.2,3.21626]
[1732010749431,0.8162,3109.3,3109.0,3.21638]
[1732010749626,0.8162,3109.3,3108.8,3.21661]
[1732010749867,0.8162,3109.3,3108.9,3.21655]
[1732010750044,1.219417,3109.3,3108.9,3.21655]
[1732010750423,1.219417,3109.3,3108.8,3.21661]
[1732010750629,1.219417,3109.3,3108.8,6.4332]
[1732010751071,1.219417,3109.3,3108.8,3.21659]
[1732010751275,3.2163,3109.2,3108.7,3.21676]
[1732010751427,0.8162,3109.3,3108.8,3.21667]
[1732010751627,0.8162,3109.3,3108.2,3.21725]
[1732010751628,3.21627,3109.2,3108.2,3.21725]
[1732010751829,3.21641,3109.1,3108.5,6.43386]
[1732010752053,3.21641,3109.1,3108.6,3.21686]
[1732010752255,0.31531483,3109.0,3108.6,3.21686]
[1732010752643,0.31531483,3109.0,3108.7,3.21675]
[1732010752840,3.21644,3109.1,3108.6,3.21686]
[1732010753645,4.04713,3109.0,3108.4,3.21707]
[1732010753881,3.21657,3108.9,3108.4,3.21707]
[1732010754273,0.23863823,3108.8,3108.5,3.21697]
[1732010754474,0.4690402,3108.9,3108.6,6.43368]
[1732010754786,0.8306,3109.0,3108.6,3.21685]
[1732010755395,0.23881396,3108.9,3108.5,3.21691]
[1732010755685,0.8306,3109.0,3108.7,3.21674]
[1732010755857,0.8306,3109.0,3108.9,3.21657]
[1732010756058,0.8104,3109.5,3109.2,3.21624]
[1732010756296,0.23907397,3109.4,3109.2,3.21624]
[1732010756666,0.8104,3109.5,3109.4,3.21605]
[1732010756848,1.04948368,3109.5,3109.4,3.21605]
[1732010757089,0.23908368,3109.5,3109.4,3.21605]
[1732010757394,0.7869,3109.8,3109.6,3.21581]
[1732010757692,0.23929737,3109.7,3109.6,3.21581]
[1732010759695,0.23929737,3109.7,3109.5,3.21591]
[1732010759856,0.23929737,3109.7,3109.4,3.21605]
[1732010759857,0.23929737,3109.7,3109.6,3.21584]
[1732010760053,0.23929737,3109.7,3109.4,3.21605]
[1732010760259,0.23929737,3109.6,3109.5,3.21595]
[1732010762503,0.23947052,3109.6,3109.2,3.21619]